bitfinex/quotes_SOLUSD_20250106
["timestamp","ask_amount","ask_price","bid_price","bid_amount"]
[1736141281011,0.86172027,216.14,216.05,137.8074]
[1736141281251,9.09866906,216.1,216.05,137.8074]
[1736141286063,9.09866906,216.1,216.06,0.69406192]
[1736141286346,9.09866906,216.12,216.06,0.69406192]
[1736141287617,9.09866906,216.11,216.06,0.69406192]
[1736141288829,9.09866906,216.1,216.06,0.69406192]
[1736141289139,9.09866906,216.11,216.06,0.69406192]
[1736141289538,0.86172027,216.17,216.07,23.776884]
[1736141289761,9.09866906,216.12,216.08,0.69395817]
[1736141291331,9.09866906,216.12,216.08,136.89395817]
[1736141291661,9.09866906,216.12,216.08,136.2]
[1736141293015,9.09866906,216.12,216.09,0.69394045]
[1736141293815,9.09866906,216.14,216.09,0.69394045]
[1736141294715,9.09866906,216.14,216.09,136.89394045]
[1736141295022,9.09866906,216.14,216.09,136.2]
[1736141296318,8.12472689,216.2,216.09,136.2]
[1736141296626,9.09866906,216.14,216.1,138.93391819]
[1736141296810,9.09866906,216.14,216.1,138.24]
[1736141297000,9.09866906,216.14,216.11,23.776884]
[1736141297199,9.09866906,216.14,216.11,24.47075426]
[1736141297600,9.09866906,216.15,216.11,160.67075426]
[1736141297830,9.09866906,216.15,216.11,159.976884]
[1736141304639,9.09866906,216.16,216.11,159.976884]
[1736141304943,9.09866906,216.17,216.11,159.976884]
[1736141305825,9.09866906,216.18,216.12,0.69385223]
[1736141306041,7.26300662,216.22,216.13,23.776884]
[1736141306241,7.26300662,216.22,216.14,136.89376879]
[1736141306540,9.09866906,216.16,216.14,136.2]
[1736141307114,9.09866906,216.17,216.14,136.2]
[1736141307463,9.09866906,216.18,216.14,136.2]
[1736141307956,0.86172027,216.23,216.14,136.2]
[1736141308132,9.09866906,216.18,216.14,136.2]
[1736141309065,9.09866906,216.17,216.14,136.2]
[1736141311262,9.09866906,216.18,216.12,137.7173]
[1736141312156,9.09866906,216.17,216.12,137.7173]
[1736141314264,9.09866906,216.15,216.12,136.2]
[1736141314447,9.09866906,216.13,216.11,2.02]
[1736141314840,9.09866906,216.13,216.06,137.8118]
[1736141314841,9.09866906,216.13,216.07,23.776884]
[1736141315060,9.09866906,216.13,216.08,2.02]
[1736141315629,9.09866906,216.13,216.07,23.776884]
[1736141315842,9.09866906,216.13,216.08,2.02]
[1736141317460,9.09866906,216.15,216.08,147.31866906]
[1736141317834,9.09866906,216.14,216.08,138.22]
[1736141319551,9.09866906,216.15,216.08,147.31866906]
[1736141320241,20.0,216.18,216.09,33.56949671]
[1736141320474,9.09866906,216.16,216.09,33.56949671]
[1736141320645,9.09866906,216.17,216.1,9.09866906]
[1736141320965,9.09866906,216.16,216.09,33.56949671]
[1736141321540,9.09866906,216.17,216.1,9.09866906]
[1736141323838,9.09866906,216.18,216.11,33.56944758]
[1736141324269,9.09866906,216.18,216.11,169.76944758]
[1736141324468,9.09866906,216.18,216.11,169.07555306]
[1736141326063,2.48202027,216.22,216.13,159.976884]
[1736141326273,9.09866906,216.19,216.13,159.976884]
[1736141326866,9.09866906,216.16,216.08,138.22]
[1736141327042,9.09866906,216.17,216.1,145.29866906]
[1736141327365,9.09866906,216.18,216.1,145.29866906]
[1736141327558,9.09866906,216.18,216.11,33.5694382]
[1736141329059,9.09866906,216.18,216.11,23.776884]
[1736141331660,9.09866906,216.18,216.11,25.796884]
[1736141332769,9.09866906,216.17,216.11,161.996884]
[1736141336985,9.09866906,216.18,216.11,161.996884]
[1736141341560,0.86172027,216.25,216.13,159.976884]
[1736141341878,9.09866906,216.21,216.15,23.776884]
[1736141342070,9.09866906,216.23,216.16,9.79239043]
[1736141343373,9.09866906,216.22,216.16,0.69372137]
[1736141345273,9.09866906,216.22,216.16,136.89372137]
[1736141345581,9.09866906,216.22,216.16,136.2]
[1736141346759,9.09866906,216.22,216.17,0.69373693]
[1736141347477,9.09866906,216.22,216.16,136.2]
[1736141347775,9.09866906,216.21,216.16,136.2]
[1736141349576,9.09866906,216.22,216.16,136.2]
[1736141352876,9.09866906,216.21,216.16,136.2]
[1736141353077,9.09866906,216.2,216.16,136.2]
[1736141357687,9.09866906,216.21,216.16,136.2]
[1736141363261,9.09866906,216.23,216.17,0.69373103]
[1736141364275,9.09866906,216.24,216.17,9.79240009]
[1736141364778,9.09866906,216.25,216.18,32.87555306]
[1736141365010,9.09866906,216.25,216.19,0.693627]
[1736141365875,9.09866906,216.26,216.19,145.99229606]
[1736141366090,9.09866906,216.25,216.19,136.2]
[1736141368589,8.14125206,216.29,216.2,6.4814]
[1736141368771,9.09866906,216.26,216.2,6.4814]
[1736141369283,9.09866906,216.25,216.2,142.6814]
[1736141377466,8.14125206,216.29,216.2,142.6814]
[1736141377467,7.27953179,216.29,216.24,9.09866906]
[1736141377672,7.27953179,216.29,216.24,9.79217841]
[1736141377907,7.27953179,216.29,216.25,9.09866906]
[1736141378079,7.27953179,216.31,216.25,9.09866906]
[1736141379396,7.27953179,216.31,216.26,0.69345952]
[1736141379397,16.37820085,216.31,216.26,0.69345952]
[1736141379672,7.27953179,216.31,216.26,0.69345952]
[1736141380073,9.09866906,216.32,216.26,0.69345952]
[1736141381723,7.27953179,216.36,216.27,171.07555306]
[1736141381996,9.09866906,216.35,216.29,159.976884]
[1736141382382,9.09866906,216.34,216.29,159.976884]
[1736141383998,9.09866906,216.35,216.29,159.976884]
[1736141384703,7.27953179,216.38,216.31,32.87555306]
[1736141384915,16.37820085,216.39,216.33,23.776884]
[1736141385812,9.09866906,216.37,216.33,23.776884]
[1736141386408,9.09866906,216.38,216.33,23.776884]
[1736141387273,29.09866906,216.39,216.33,23.776884]
[1736141387587,7.27953179,216.44,216.37,23.776884]
[1736141387901,7.27953179,216.44,216.38,9.79171596]
[1736141388090,7.27953179,216.44,216.39,170.72015306]
[1736141388672,9.09866906,216.45,216.4,0.69298303]
[1736141389217,9.09866906,216.45,216.41,2.0]
[1736141391003,0.86172027,216.49,216.41,138.2]
[1736141391210,9.09866906,216.46,216.41,138.2]
[1736141392207,9.09866906,216.45,216.41,138.2]
[1736141393804,9.09866906,216.46,216.41,138.2]
[1736141397215,9.09866906,216.45,216.41,138.2]
[1736141398907,9.09866906,216.46,216.41,138.2]
[1736141399107,20.0,216.48,216.41,138.2]
[1736141399295,9.09866906,216.46,216.41,138.2]
[1736141400692,20.0,216.48,216.41,138.2]
[1736141400937,9.09866906,216.46,216.41,138.2]
[1736141402392,9.09866906,216.45,216.41,138.2]
[1736141402914,9.09866906,216.42,216.41,136.2]
[1736141403217,9.09866906,216.42,216.37,2.04]
[1736141403427,9.09866906,216.39,216.37,2.04]
[1736141403915,0.86172027,216.47,216.37,2.04]
[1736141404143,9.09866906,216.4,216.37,2.04]
[1736141406018,0.86172027,216.47,216.37,2.04]
[1736141406202,9.09866906,216.42,216.37,138.24]
[1736141406568,9.09866906,216.43,216.38,159.976884]
[1736141406711,67.94327624,216.48,216.39,0.69300745]
[1736141406712,9.09866906,216.45,216.39,0.69300745]
[1736141407103,9.09866906,216.45,216.39,9.79167651]
[1736141407719,9.09866906,216.45,216.39,9.09866906]
[1736141407898,9.09866906,216.45,216.4,23.776884]
[1736141408301,20.0,216.49,216.4,23.776884]
[1736141408504,9.09866906,216.45,216.4,23.776884]
[1736141409517,9.09866906,216.46,216.4,32.87555306]
[1736141410028,9.09866906,216.46,216.42,23.776884]
[1736141411226,2.67900177,216.51,216.42,159.976884]
[1736141411404,9.09866906,216.47,216.42,159.976884]
[1736141412408,9.09866906,216.46,216.42,159.976884]
[1736141414630,9.09866906,216.46,216.42,161.546384]
[1736141415743,9.09866906,216.46,216.42,137.7695]
[1736141415930,9.09866906,216.44,216.42,137.7695]
[1736141417040,9.09866906,216.44,216.42,1.5695]
[1736141417629,0.86172027,216.49,216.42,1.5695]
[1736141417833,9.09866906,216.44,216.42,1.5695]
[1736141419635,9.09866906,216.45,216.42,1.5695]
[1736141420811,11.5473,216.5,216.42,3.6095]
[1736141421053,9.09866906,216.46,216.42,3.6095]
[1736141421339,9.09866906,216.45,216.42,3.6095]
[1736141422438,9.09866906,216.44,216.42,3.6095]
[1736141422943,9.09866906,216.45,216.42,3.6095]
[1736141426137,2.70893538,216.53,216.42,12.70816906]
[1736141426324,2.70893538,216.53,216.43,32.87555306]
[1736141426538,9.09866906,216.49,216.43,32.87555306]
[1736141426748,2.70893538,216.53,216.42,148.90816906]
[1736141427039,9.09866906,216.49,216.42,148.90816906]
[1736141427229,2.70893538,216.53,216.42,148.90816906]
[1736141427431,9.09866906,216.48,216.42,148.90816906]
[1736141427734,9.09866906,216.47,216.42,139.8095]
[1736141428133,2.70893538,216.53,216.42,139.8095]
[1736141428332,2.70893538,216.53,216.42,148.90816906]
[1736141428729,9.09866906,216.49,216.42,148.90816906]
[1736141429034,9.09866906,216.49,216.43,9.09866906]
[1736141429238,1.84721511,216.53,216.44,9.79152467]
[1736141429463,9.09866906,216.53,216.47,145.29866906]
[1736141429941,7.27953179,216.56,216.47,145.29866906]
[1736141430239,9.09866906,216.52,216.47,136.2]
[1736141430446,9.09866906,216.51,216.47,136.2]
[1736141431847,9.09866906,216.48,216.47,136.2]
[1736141432349,9.09866906,216.48,216.45,2.02]
[1736141432643,9.09866906,216.46,216.41,2.02]
[1736141432948,9.09866906,216.42,216.41,2.02]
[1736141433947,9.09866906,216.42,216.39,142.6792]
[1736141434150,0.86172027,216.47,216.41,2.02]
[1736141434950,20.0,216.44,216.38,2.02]
[1736141435159,20.0,216.44,216.37,136.2]
[1736141435443,9.09866906,216.38,216.37,136.2]
[1736141436245,7.27953179,216.46,216.36,2.02]
[1736141436420,9.09866906,216.41,216.37,0.69300993]
[1736141436626,9.09866906,216.39,216.37,0.69300993]
[1736141436837,9.09866906,216.39,216.37,136.89300993]
[1736141437038,9.09866906,216.39,216.37,136.2]
[1736141437235,9.09866906,216.39,216.38,0.69294497]
[1736141437952,9.09866906,216.4,216.38,136.89294497]
[1736141438149,9.09866906,216.4,216.39,1.5074]
[1736141438364,36.39467624,216.48,216.4,142.7754]
[1736141438573,9.09866906,216.43,216.41,0.6928415]
[1736141438761,7.27953179,216.51,216.42,159.976884]
[1736141439099,36.39467624,216.48,216.43,138.22]
[1736141440186,36.39467624,216.48,216.43,2.02]
[1736141440343,9.09866906,216.44,216.43,2.02]
[1736141443767,7.27953179,216.53,216.43,161.996884]
[1736141443950,9.09866906,216.45,216.44,136.89278009]
[1736141444156,7.27953179,216.53,216.44,136.2]
[1736141444360,9.09866906,216.45,216.44,136.2]
[1736141444547,7.27953179,216.53,216.44,137.8503]
[1736141444746,9.09866906,216.45,216.44,137.8503]
[1736141448353,7.27953179,216.54,216.44,137.8503]
[1736141448561,7.27953179,216.54,216.46,23.776884]
[1736141448775,7.27953179,216.54,216.47,0.69268119]
[1736141449526,9.09866906,216.52,216.48,23.776884]
[1736141449791,9.09866906,216.51,216.5,23.776884]
[1736141449983,9.09866906,216.52,216.5,161.996884]
[1736141450279,7.27953179,216.57,216.52,137.8394]
[1736141450458,7.27953179,216.57,216.53,136.89251053]
[1736141450658,36.39467624,216.59,216.53,136.2]
[1736141450860,9.09866906,216.54,216.53,136.2]
[1736141454275,9.09866906,216.54,216.53,138.22]
[1736141454787,20.0,216.62,216.53,138.22]
[1736141454970,9.09866906,216.55,216.54,136.89243346]
[1736141455173,9.09866906,216.55,216.54,136.2]
[1736141457079,20.0,216.52,216.38,6.27999761]
[1736141457399,8.68987648,216.57,216.43,15.72616906]
[1736141457572,9.09866906,216.51,216.44,171.92817659]
[1736141457772,9.09866906,216.51,216.44,171.23555306]
[1736141457968,1.506,216.59,216.44,176.23548091]
[1736141458168,9.09866906,216.53,216.46,23.776884]
[1736141458490,9.09866906,216.53,216.48,23.776884]
[1736141458664,9.09866906,216.53,216.49,0.69258458]
[1736141459084,9.09866906,216.52,216.49,0.69258458]
[1736141459572,9.09866906,216.51,216.49,0.69258458]
[1736141460194,9.09866906,216.52,216.5,312.0]
[1736141460394,9.09866906,216.52,216.51,0.69259744]
[1736141460997,14.09287258,216.52,216.51,0.69259744]
[1736141461376,14.09287258,216.52,216.49,0.69260775]
[1736141461694,14.09287258,216.52,216.5,1.0]
[1736141461898,14.09287258,216.52,216.51,0.69258973]
[1736141462301,14.09287258,216.53,216.51,0.69258973]
[1736141462909,14.09287258,216.52,216.51,0.69258973]
[1736141463701,14.09287258,216.52,216.51,312.69258973]
[1736141463882,14.09287258,216.52,216.51,312.0]
[1736141465507,14.09287258,216.53,216.51,312.0]
[1736141465703,14.09287258,216.53,216.52,0.69256458]
[1736141466706,14.09287258,216.55,216.52,0.69256458]
[1736141467290,14.09287258,216.54,216.52,136.89256458]
[1736141467490,14.09287258,216.54,216.52,136.2]
[1736141467709,14.09287258,216.53,216.52,159.976884]
[1736141468082,14.09287258,216.53,216.52,136.2]
[1736141468395,14.09287258,216.53,216.5,1.0]
[1736141468608,28.18574516,216.51,216.5,1.0]
[1736141469127,14.09287258,216.51,216.5,1.0]
[1736141472282,28.18574516,216.51,216.39,1.582]
[1736141472478,14.09287258,216.42,216.39,4.43493861]
[1736141472704,14.09287258,216.43,216.39,140.63493861]
[1736141472907,14.09287258,216.42,216.39,3.742]
[1736141473122,14.09287258,216.41,216.39,2.16]
[1736141473484,14.09287258,216.41,216.38,2.16]
[1736141474290,14.09287258,216.4,216.38,2.16]
[1736141474482,14.09287258,216.39,216.38,2.16]
[1736141474882,14.09287258,216.4,216.38,2.16]
[1736141475086,14.09287258,216.41,216.38,2.16]
[1736141475525,14.09287258,216.4,216.38,2.16]
[1736141475710,14.09287258,216.4,216.37,136.2]
[1736141475885,14.09287258,216.43,216.38,136.89300569]
[1736141476083,14.09287258,216.43,216.38,136.2]
[1736141476294,14.09287258,216.43,216.39,0.69291332]
[1736141476515,14.09287258,216.44,216.39,0.69291332]
[1736141476804,14.09287258,216.47,216.4,174.06975658]
[1736141477013,14.09287258,216.47,216.41,0.69280047]
[1736141477482,14.09287258,216.47,216.42,23.776884]
[1736141477683,14.09287258,216.47,216.43,0.69276769]
[1736141478107,14.09287258,216.46,216.43,0.69276769]
[1736141479910,14.09287258,216.44,216.41,0.69285369]
[1736141483418,14.09287258,216.44,216.38,0.69290493]
[1736141484012,14.09287258,216.43,216.39,2.16]
[1736141484900,14.09287258,216.42,216.39,2.16]
[1736141485288,14.09287258,216.42,216.39,2.85292112]
[1736141485494,14.09287258,216.4,216.36,2.16]
[1736141485710,14.09287258,216.37,216.36,2.16]
[1736141486093,14.09287258,216.38,216.36,2.16]
[1736141486389,14.09287258,216.39,216.36,2.16]
[1736141486799,14.09287258,216.38,216.36,2.16]
[1736141486994,14.09287258,216.37,216.35,0.69305568]
[1736141487207,14.09287258,216.37,216.34,2.16]
[1736141488714,14.09287258,216.38,216.34,2.85311485]
[1736141489220,14.09287258,216.37,216.35,2.16]
[1736141490824,14.09287258,216.36,216.34,2.16]
[1736141492418,0.86172027,216.44,216.35,23.776884]
[1736141492626,14.09287258,216.44,216.37,37.86975658]
[1736141492811,14.09287258,216.44,216.39,23.776884]
[1736141493008,14.09287258,216.44,216.4,0.69289586]
[1736141493323,14.09287258,216.43,216.4,0.69289586]
[1736141493519,14.09287258,216.42,216.4,0.69289586]
[1736141493714,14.09287258,216.41,216.39,136.2]
[1736141493907,14.09287258,216.4,216.34,138.36]
[1736141494127,14.09287258,216.37,216.34,138.36]
[1736141494323,14.09287258,216.36,216.34,2.16]
[1736141495219,14.09287258,216.39,216.34,2.16]
[1736141495411,14.09287258,216.39,216.35,0.69309015]
[1736141495923,2.45452027,216.46,216.35,0.69309015]
[1736141495924,14.09287258,216.4,216.35,0.69309015]
[1736141496139,14.09287258,216.41,216.35,0.69309015]
[1736141496428,14.09287258,216.43,216.36,174.06975658]
[1736141496601,14.09287258,216.41,216.37,0.6929841]
[1736141497210,1.5928,216.46,216.34,16.25287258]
[1736141497211,14.09287258,216.39,216.34,138.36]
[1736141497533,14.09287258,216.36,216.34,2.16]
[1736141498712,14.09287258,216.38,216.34,2.16]
[1736141498914,14.09287258,216.38,216.35,0.69306133]
[1736141499234,14.09287258,216.39,216.35,0.69306133]
[1736141499738,14.09287258,216.4,216.35,0.69306133]
[1736141500125,14.09287258,216.41,216.35,0.69306133]
[1736141500831,14.09287258,216.41,216.36,23.776884]
[1736141501138,14.09287258,216.43,216.37,136.89297928]
[1736141501348,14.09287258,216.44,216.38,23.776884]
[1736141501650,14.09287258,216.44,216.39,0.69290142]
[1736141502342,14.09287258,216.43,216.39,0.69290142]
[1736141502535,14.09287258,216.44,216.39,0.69290142]
[1736141502842,14.09287258,216.45,216.39,136.89290142]
[1736141503029,14.09287258,216.45,216.39,136.2]
[1736141503218,14.09287258,216.45,216.4,0.69285337]
[1736141503420,14.09287258,216.46,216.4,24.46973737]
[1736141503619,14.09287258,216.47,216.4,174.76260995]
[1736141503835,14.09287258,216.47,216.4,174.06975658]
[1736141504040,14.09287258,216.47,216.41,0.69281838]
[1736141504329,14.09287258,216.47,216.42,2.16]
[1736141504554,14.09287258,216.47,216.43,0.69281594]
[1736141504925,14.09287258,216.46,216.42,2.16]
[1736141505333,14.09287258,216.45,216.42,2.16]
[1736141505635,1.5711,216.51,216.42,2.16]
[1736141505636,14.09287258,216.44,216.42,2.16]
[1736141506055,14.09287258,216.44,216.4,159.976884]
[1736141506222,14.09287258,216.44,216.41,2.16]
[1736141506434,14.09287258,216.42,216.4,2.16]
[1736141506749,14.09287258,216.41,216.4,2.16]
[1736141507427,14.09287258,216.42,216.4,2.16]
[1736141507928,14.09287258,216.44,216.4,2.85295104]
[1736141508136,14.09287258,216.43,216.4,2.16]
[1736141509145,14.09287258,216.42,216.4,2.16]
[1736141509621,14.09287258,216.43,216.4,2.16]
[1736141509838,14.09287258,216.43,216.4,2.85292914]
[1736141510544,14.09287258,216.43,216.4,2.16]
[1736141511469,14.09287258,216.44,216.4,2.16]
[1736141512119,14.09287258,216.43,216.4,2.16]
[1736141512322,14.09287258,216.42,216.4,2.16]
[1736141513053,9.02854596,216.42,216.4,2.16]
[1736141514054,9.02854596,216.43,216.4,2.16]
[1736141514455,9.02854596,216.44,216.4,2.16]
[1736141516048,9.02854596,216.44,216.4,2.8529216]
[1736141516738,9.02854596,216.42,216.37,159.976884]
[1736141516939,9.02854596,216.41,216.38,2.18]
[1736141517777,9.02854596,216.42,216.38,2.87301715]
[1736141518064,9.02854596,216.43,216.38,2.87301715]
[1736141518463,9.02854596,216.44,216.38,2.87301715]
[1736141518676,9.02854596,216.45,216.38,11.90156311]
[1736141519267,20.0,216.49,216.39,32.80542996]
[1736141519530,0.86172027,216.54,216.41,32.80542996]
[1736141519680,9.02854596,216.51,216.43,9.02854596]
[1736141519966,9.02854596,216.51,216.44,0.69277493]
[1736141520181,9.02854596,216.49,216.44,0.69277493]
[1736141520340,9.02854596,216.48,216.42,136.2]
[1736141520655,9.02854596,216.47,216.42,136.2]
[1736141520963,9.02854596,216.48,216.43,0.69289253]
[1736141522082,11.5452,216.54,216.43,9.72143849]
[1736141522376,6.6043,216.55,216.44,23.776884]
[1736141522538,9.02854596,216.5,216.45,0.6927343]
[1736141523877,9.02854596,216.53,216.46,34.98542996]
[1736141524076,9.02854596,216.53,216.47,0.69266813]
[1736141524365,9.02854596,216.51,216.47,0.69266813]
[1736141524568,9.02854596,216.51,216.46,2.18]
[1736141526056,9.02854596,216.51,216.46,2.87273668]
[1736141527161,21.5736,216.56,216.46,2.87273668]
[1736141527373,9.02854596,216.52,216.46,2.87273668]
[1736141529555,9.02854596,216.53,216.47,23.776884]
[1736141529886,21.5736,216.56,216.49,23.776884]
[1736141530076,9.02854596,216.53,216.49,23.776884]
[1736141530380,9.02854596,216.54,216.49,23.776884]
[1736141530981,9.02854596,216.54,216.5,0.69262188]
[1736141531279,9.02854596,216.53,216.5,0.69262188]
[1736141531480,9.02854596,216.53,216.49,23.776884]
[1736141532066,9.02854596,216.53,216.48,0.69262595]
[1736141532367,9.02854596,216.52,216.48,0.69262595]
[1736141533383,9.02854596,216.51,216.47,136.2]
[1736141533856,9.02854596,216.51,216.46,2.18]
[1736141534051,20.0,216.56,216.45,0.69271542]
[1736141534052,9.02854596,216.5,216.45,0.69271542]
[1736141534351,9.02854596,216.5,216.44,136.2]
[1736141534352,9.02854596,216.47,216.44,2.18]
[1736141538686,0.86172027,216.54,216.44,2.18]
[1736141538687,9.02854596,216.48,216.44,2.18]
[1736141538985,9.02854596,216.45,216.4,2.18]
[1736141539180,9.02854596,216.43,216.4,2.18]
[1736141539565,9.02854596,216.41,216.37,2.87297689]
[1736141540187,9.02854596,216.42,216.37,2.87297689]
[1736141540885,9.02854596,216.42,216.37,2.18]
[1736141543084,0.86172027,216.47,216.35,0.69305613]
[1736141543085,9.02854596,216.39,216.35,0.69305613]
[1736141543291,9.02854596,216.39,216.35,2.18]
[1736141544691,9.02854596,216.37,216.32,0.69314532]
[1736141544897,9.02854596,216.37,216.33,2.18]
[1736141546279,9.02854596,216.38,216.33,2.87318141]
[1736141546472,9.02854596,216.39,216.33,2.87318141]
[1736141546878,9.02854596,216.39,216.33,0.69318141]
[1736141547173,9.02854596,216.39,216.34,2.16]
[1736141547374,9.02854596,216.38,216.34,2.16]
[1736141548599,1.5042,216.44,216.35,23.776884]
[1736141548773,9.02854596,216.42,216.35,33.49855766]
[1736141548975,9.02854596,216.41,216.35,33.49855766]
[1736141549501,9.02854596,216.41,216.35,24.4700117]
[1736141550499,9.02854596,216.4,216.35,0.6931277]
[1736141550795,20.0,216.44,216.35,0.6931277]
[1736141551006,9.02854596,216.41,216.35,24.4700117]
[1736141553589,9.02854596,216.42,216.36,23.776884]
[1736141553911,9.02854596,216.43,216.37,0.69300777]
[1736141554724,9.02854596,216.44,216.38,23.776884]
[1736141555000,9.02854596,216.45,216.38,32.80542996]
[1736141555200,9.02854596,216.45,216.39,0.69294173]
[1736141555705,9.02854596,216.44,216.39,0.69294173]
[1736141556710,9.02854596,216.43,216.39,0.69294173]
[1736141557006,9.02854596,216.43,216.38,23.776884]
[1736141557197,20.86172027,216.47,216.38,23.776884]
[1736141557198,9.02854596,216.42,216.38,23.776884]
[1736141557703,20.86172027,216.47,216.36,136.2]
[1736141557704,9.02854596,216.4,216.36,136.2]
[1736141558082,9.02854596,216.39,216.36,136.2]
[1736141558518,9.02854596,216.38,216.35,2.16]
[1736141559005,9.02854596,216.38,216.31,9.72172854]
[1736141559207,9.02854596,216.38,216.32,2.16]
[1736141559409,9.02854596,216.38,216.33,0.6931486]
[1736141559708,9.02854596,216.39,216.33,0.6931486]
[1736141561212,9.02854596,216.4,216.34,23.776884]
[1736141561806,9.02854596,216.39,216.34,23.776884]
[1736141564714,9.02854596,216.39,216.35,0.69311716]
[1736141565097,9.02854596,216.4,216.35,0.69311716]
[1736141571218,20.0,216.45,216.36,23.776884]
[1736141571515,9.02854596,216.4,216.33,169.00542996]
[1736141571704,9.02854596,216.41,216.35,23.776884]
[1736141571906,9.02854596,216.41,216.36,0.69305254]
[1736141572107,9.02854596,216.42,216.36,0.69305254]
[1736141572813,1.5409,216.48,216.36,9.7215985]
[1736141572993,9.02854596,216.43,216.36,9.7215985]
[1736141573837,9.02854596,216.44,216.37,9.02854596]
[1736141573990,9.02854596,216.44,216.38,0.69297]
[1736141576246,9.02854596,216.44,216.39,2.16]
[1736141576595,9.02854596,216.43,216.39,2.16]
[1736141578220,9.02854596,216.42,216.39,2.16]
[1736141578607,9.02854596,216.4,216.36,2.18]
[1736141578808,9.02854596,216.39,216.36,2.18]
[1736141579015,9.02854596,216.4,216.36,2.18]
[1736141585327,9.02854596,216.38,216.36,2.18]
[1736141586122,0.86172027,216.46,216.29,24.4247]
[1736141586123,9.02854596,216.37,216.29,7.8664]
[1736141586323,9.02854596,216.33,216.3,2.18]
[1736141586524,20.0,216.4,216.3,2.18]
[1736141586714,9.02854596,216.35,216.3,2.18]
[1736141586912,9.02854596,216.35,216.31,2.18]
[1736141588335,9.02854596,216.34,216.29,0.69327013]
[1736141588503,9.02854596,216.34,216.3,2.18]
[1736141588702,9.02854596,216.35,216.3,2.18]
[1736141589716,9.02854596,216.35,216.31,0.69322835]
[1736141590023,9.02854596,216.35,216.3,2.18]
[1736141591242,9.02854596,216.36,216.3,2.18]
[1736141592439,9.02854596,216.35,216.3,2.18]
[1736141593735,9.02854596,216.36,216.3,2.18]
[1736141594839,2.52402027,216.4,216.31,0.69327703]
[1736141595036,9.02854596,216.36,216.31,0.69327703]
[1736141597046,9.02854596,216.37,216.31,0.69327703]
[1736141597220,0.86172027,216.44,216.34,9.02854596]
[1736141597416,9.02854596,216.43,216.36,9.02854596]
[1736141598140,8.79953179,216.46,216.37,0.69308334]
[1736141598334,9.02854596,216.43,216.37,9.7216293]
[1736141598739,9.02854596,216.44,216.37,9.7216293]
[1736141598925,9.02854596,216.45,216.38,9.02854596]
[1736141599122,9.02854596,216.45,216.39,2.87299962]
[1736141599338,9.02854596,216.46,216.39,11.90154558]
[1736141599541,9.02854596,216.46,216.4,9.02854596]
[1736141600244,9.02854596,216.46,216.41,0.69293074]
[1736141600916,9.02854596,216.45,216.39,11.20854596]
[1736141601122,9.02854596,216.44,216.39,2.18]
[1736141601541,9.02854596,216.45,216.39,11.20854596]
[1736141601920,9.02854596,216.45,216.39,11.90151475]
[1736141602825,9.02854596,216.45,216.39,11.20854596]
[1736141603061,0.86172027,216.5,216.39,11.20854596]
[1736141603260,9.02854596,216.46,216.4,0.69296262]
[1736141603468,9.02854596,216.45,216.4,0.69296262]
[1736141605353,9.02854596,216.47,216.41,9.02854596]
[1736141605553,9.02854596,216.46,216.4,9.72150858]
[1736141606437,9.02854596,216.46,216.4,0.69296262]
[1736141606641,2.47312027,216.52,216.4,0.69296262]
[1736141606946,9.02854596,216.51,216.44,9.02854596]
[1736141607129,9.02854596,216.48,216.4,0.69296262]
[1736141607331,9.02854596,216.47,216.4,0.69296262]
[1736141607535,9.02854596,216.47,216.4,9.72150858]
[1736141608127,9.02854596,216.46,216.4,0.69296262]
[1736141608534,9.02854596,216.44,216.4,0.69296262]
[1736141610546,9.02854596,216.44,216.39,2.18]
[1736141610547,9.02854596,216.43,216.39,2.18]
[1736141613447,9.02854596,216.42,216.36,0.69303747]
[1736141613646,9.02854596,216.42,216.37,2.14]
[1736141614256,9.02854596,216.42,216.36,0.69303747]
[1736141614449,9.02854596,216.42,216.38,2.14]
[1736141615153,9.02854596,216.41,216.36,0.69303747]
[1736141615361,9.02854596,216.39,216.36,2.14]
[1736141615958,9.02854596,216.38,216.35,2.14]
[1736141616344,9.02854596,216.37,216.35,2.14]
[1736141617465,13.91262027,216.45,216.35,2.14]
[1736141617839,9.02854596,216.41,216.35,2.83310004]
[1736141618665,9.02854596,216.43,216.35,11.861646]
[1736141619435,9.02854596,216.43,216.36,9.02854596]
[1736141619640,9.02854596,216.43,216.37,0.69305373]